fUSD/lending_fUSD_20250820
["ID","MTS","AMOUNT","RATE_DAILY","PERIOD"]
[380356170,1755701442019,-1762.9025084,0.000219,4]
[380356171,1755701442029,-1762.9025084,0.000219,4]
[380356172,1755701442038,-1762.9025084,0.000219,4]
[380356173,1755701442048,-1762.9025084,0.000219,4]
[380356174,1755701442058,-1762.9025084,0.000219,4]
[380356175,1755701442067,-1762.9025084,0.000219,4]
[380356176,1755701442077,-1762.9025084,0.000219,4]
[380356177,1755701442086,-1762.9025084,0.000219,4]
[380356178,1755701442096,-1762.9025084,0.000219,4]
[380356179,1755701442105,-1762.9025084,0.000219,4]
[380356180,1755701442115,-1762.9025084,0.000219,4]
[380356181,1755701442125,-1762.9025084,0.000219,4]
[380356182,1755701442135,-1762.9025084,0.000219,4]
[380356183,1755701442144,-1762.9025084,0.000219,4]
[380356184,1755701442154,-1762.9,0.000219,4]
[380356185,1755701442163,-4113.43918626,0.000219,4]
[380356186,1755701442173,-4113.43918626,0.000219,4]
[380356187,1755701442597,-4113.43918626,0.000219,4]
[380356188,1755701442625,-4113.43918626,0.000219,4]
[380356189,1755701442636,-4113.43918626,0.000219,4]
[380356190,1755701442645,-4113.43918626,0.000219,4]
[380356191,1755701442655,-1161.21093085,0.000219,2]
[380356192,1755701442665,-158.44266566,0.000219,4]
[380356193,1755701442674,-158.44266566,0.000219,4]
[380356194,1755701442684,-158.44266566,0.000219,4]
[380356195,1755701442694,-158.44266566,0.000219,4]
[380356196,1755701442704,-158.44266566,0.000219,4]
[380356197,1755701442713,-158.44266566,0.000219,4]
[380356198,1755701442724,-158.44266566,0.000219,4]
[380356199,1755701442734,-158.44266566,0.000219,4]
[380356200,1755701442744,-158.44266566,0.000219,4]
[380356201,1755701442753,-158.44266566,0.000219,4]
[380356202,1755701442763,-158.44266566,0.000219,4]
[380356203,1755701442774,-158.44266566,0.000219,4]
[380356204,1755701442784,-158.44266566,0.000219,4]
[380356205,1755701442794,-158.44266566,0.000219,4]
[380356206,1755701442804,-158.44266566,0.000219,4]
[380356207,1755701442814,-158.44266566,0.000219,4]
[380356209,1755701442823,-158.44266566,0.000219,4]
[380356210,1755701442833,-158.44266566,0.000219,4]
[380356211,1755701442843,-158.44266566,0.000219,4]
[380356212,1755701442852,-158.44,0.000219,4]
[380356213,1755701442862,-185.00214356,0.000219,2]
[380356214,1755701442871,-369.6995532,0.000219,4]
[380356215,1755701442881,-369.6995532,0.000219,4]
[380356216,1755701442890,-10352.22550877,0.000219,2]
[380356217,1755701442900,-369.6995532,0.000219,4]
[380356218,1755701442910,-369.6995532,0.000219,4]
[380356219,1755701442920,-369.6995532,0.000219,4]
[380356220,1755701442929,-369.6995532,0.000219,4]
[380356221,1755701442939,-2987.0,0.00021917,2]
[380356222,1755701442949,-5000.0,0.00021918,2]
[380356224,1755701442959,-150.0,0.00021918,2]
[380356226,1755701442969,-2339.16,0.00021945,30]
[380356227,1755701442978,-241.4515268,0.0002195,2]
[380356228,1755701442988,-400.0,0.0002197,2]
[380356229,1755701442998,-6368.535591,0.00021973,4]
[380356230,1755701443008,-4113.43918626,0.00021973,4]
[380356231,1755701443019,-369.6995532,0.00021973,4]
[380356232,1755701443027,-150.62504572,0.00021973,4]
[380356233,1755701443036,-152.10730264,0.00021973,4]
[380356234,1755701443046,-150.0,0.00021973,4]
[380356235,1755701443056,-150.0,0.00021973,4]
[380356236,1755701443065,-184.26180278,0.00021973,4]
[380356237,1755701443075,-182.05807441,0.00021973,4]
[380356238,1755701443085,-189.05924571,0.00021973,4]
[380356239,1755701443095,-276.40296495,0.00021973,4]
[380356240,1755701443104,-276.03918311,0.00021973,4]
[380356241,1755701443114,-150.0,0.00021973,4]
[380356242,1755701443123,-251.01157101,0.00021973,2]
[380356243,1755701443133,-500.0,0.00021973,2]
[380356244,1755701443143,-500.0,0.00021973,2]
[380356245,1755701443152,-500.0,0.00021973,2]
[380356246,1755701443162,-500.0,0.00021973,2]
[380356247,1755701443175,-500.0,0.00021973,2]
[380356248,1755701443185,-500.0,0.00021973,2]
[380356249,1755701443194,-500.0,0.00021973,2]
[380356250,1755701443204,-500.0,0.00021973,2]
[380356251,1755701443215,-639.74227414,0.00021973,2]
[380356252,1755701443226,-500.0,0.00021973,2]
[380356253,1755701443238,-500.0,0.00021973,2]
[380356254,1755701443249,-160.03442829,0.00021973,2]
[380356255,1755701443260,-159.89798356,0.00021973,2]
[380356256,1755701443272,-504.44322309,0.00021973,2]
[380356257,1755701443282,-500.0,0.00021973,2]
[380356258,1755701443291,-500.0,0.00021973,2]
[380356259,1755701443301,-336.96243007,0.00021973,2]
[380356260,1755701443311,-500.0,0.00021973,2]
[380356261,1755701443321,-500.0,0.00021973,2]
[380356262,1755701443332,-500.0,0.00021973,2]
[380356263,1755701443342,-500.0,0.00021973,2]
[380356264,1755701443351,-399.49346105,0.00021973,2]
[380356265,1755701443360,-500.0,0.00021973,2]
[380356266,1755701443371,-500.0,0.00021973,2]
[380356267,1755701443380,-500.0,0.00021973,2]
[380356268,1755701443390,-500.0,0.00021973,2]
[380356269,1755701443399,-500.0,0.00021973,2]
[380356270,1755701443410,-500.0,0.00021973,2]
[380356271,1755701443419,-276.03651359,0.00021973,2]
[380356272,1755701443429,-500.0,0.00021973,2]
[380356273,1755701443438,-500.0,0.00021973,2]
[380356274,1755701443448,-500.0,0.00021973,2]
[380356275,1755701443458,-198.12,0.00021976,2]
[380356277,1755701443468,-150.0,0.00021978,2]
[380356279,1755701443478,-791.57872967,0.00021979,2]
[380356281,1755701443488,-1008.87485154,0.00021981,2]
[380356283,1755701443497,-1226.17097341,0.00021982,2]
[380356285,1755701443507,-1443.46709528,0.00021983,2]
[380356287,1755701443517,-1660.76321715,0.00021985,2]
[380356289,1755701443527,-20424.0415685,0.00021986,2]
[380356291,1755701443537,-1878.05933902,0.00021986,2]
[380356294,1755701443547,-2095.35546089,0.00021987,2]
[380356296,1755701443557,-198.12,0.00021989,2]
[380356298,1755701443566,-2312.65158277,0.00021989,2]
[380356300,1755701443576,-5100.0,0.0002199,13]
[380356302,1755701443586,-5100.0,0.0002199,12]
[380356304,1755701443596,-1194.85826733,0.0002199,4]
[380356306,1755701443606,-2529.94770465,0.0002199,2]
[380356308,1755701443616,-500.0,0.00021999,2]
[380356310,1755701443625,-300.0,0.00021999,2]
[380356312,1755701443635,-2000.0,0.00021999,2]
[380356314,1755701443644,-666.0,0.00021999,2]
[380356316,1755701443653,-300.0,0.00021999,2]
[380356318,1755701443663,-557.18344091,0.00021999,2]
[380356321,1755701443672,-666.0,0.00021999,2]
[380356323,1755701443682,-300.0,0.00021999,2]
[380356325,1755701443691,-300.0,0.00021999,2]
[380356327,1755701443701,-500.0,0.00021999,2]
[380356329,1755701443710,-666.0,0.00021999,2]
[380356331,1755701443720,-300.0,0.00021999,2]
[380356333,1755701443730,-300.0,0.00021999,2]
[380356335,1755701443739,-300.0,0.00021999,2]
[380356337,1755701443749,-300.0,0.00021999,2]
[380356339,1755701443758,-666.0,0.00021999,2]
[380356341,1755701443767,-300.0,0.00021999,2]
[380356343,1755701443777,-300.0,0.00021999,2]
[380356345,1755701443787,-9274.81107495,0.00021999,4]
[380356347,1755701443796,-500.0,0.00021999,4]
[380356349,1755701443806,-277.35679052,0.00021999,4]
[380356351,1755701443817,-9617.97908473,0.00021999,4]
[380356354,1755701443826,-721.12765535,0.00021999,4]
[380356356,1755701443837,-287.61899177,0.00021999,4]
[380356358,1755701443846,-500.0,0.00021999,4]
[380356360,1755701443856,-155.64884187,0.00021999,4]
[380356362,1755701443866,-9973.84431086,0.00021999,4]
[380356364,1755701443876,-298.26089446,0.00021999,4]
[380356366,1755701443885,-721.12765535,0.00021999,4]
[380356368,1755701443895,-10342.87655036,0.00021999,4]
[380356370,1755701443905,-500.0,0.00021999,4]
[380356372,1755701443915,-309.29654756,0.00021999,4]
[380356374,1755701443924,-10725.56298273,0.00021999,4]
[380356376,1755701443934,-500.0,0.00021999,4]
[380356378,1755701443944,-320.74051982,0.00021999,4]
[380356380,1755701443954,-500.0,0.00021999,4]
[380356382,1755701443963,-11122.40881309,0.00021999,4]
[380356384,1755701443973,-332.60791905,0.00021999,4]
[380356386,1755701443983,-500.0,0.00021999,4]
[380356388,1755701443992,-344.91441206,0.00021999,4]
[380356390,1755701444002,-500.0,0.00021999,4]
[380356392,1755701444011,-11533.93793917,0.00021999,4]
[380356394,1755701444023,-151.0,0.00021999,4]
[380356396,1755701444032,-246.39601672,0.00021999,4]
[380356398,1755701444042,-357.6762453,0.00021999,4]
[380356400,1755701444051,-11960.69364292,0.00021999,4]
[380356402,1755701444060,-151.0,0.00021999,4]
[380356404,1755701444070,-370.91026638,0.00021999,4]
[380356406,1755701444080,-151.0,0.00021999,4]
[380356408,1755701444089,-12403.23930771,0.00021999,4]
[380356410,1755701444099,-384.63394623,0.00021999,4]
[380356412,1755701444110,-151.0,0.00021999,4]
[380356414,1755701444122,-398.86540225,0.00021999,4]
[380356416,1755701444131,-151.0,0.00021999,4]
[380356418,1755701444145,-12862.1591621,0.00021999,4]
[380356420,1755701444154,-151.0,0.00021999,4]
[380356422,1755701444163,-13338.05905109,0.00021999,4]
[380356424,1755701444174,-151.0,0.00021999,4]
[380356427,1755701444186,-151.0,0.00021999,4]
[380356429,1755701444195,-500.0,0.00021999,4]
[380356430,1755701444204,-500.0,0.00021999,4]
[380356434,1755701444215,-151.0,0.00021999,4]
[380356437,1755701444228,-500.0,0.00021999,4]
[380356440,1755701444238,-151.0,0.00021999,4]
[380356443,1755701444248,-500.0,0.00021999,4]
[380356445,1755701444258,-500.0,0.00021999,4]
[380356446,1755701444269,-151.0,0.00021999,4]
[380356448,1755701444278,-500.0,0.00021999,4]
[380356450,1755701444288,-500.0,0.00021999,4]
[380356452,1755701444298,-500.0,0.00021999,4]
[380356453,1755701444307,-500.0,0.00021999,4]
[380356454,1755701444317,-587.33829601,0.00021999,4]
[380356455,1755701444327,-322.6107,0.00021999,4]
[380356456,1755701444337,-334.5472959,0.00021999,4]
[380356457,1755701444348,-346.92554585,0.00021999,4]
[380356458,1755701444358,-195.91645825,0.00021999,4]
[380356459,1755701444368,-151.0,0.00021999,4]
[380356460,1755701444378,-151.0,0.00021999,4]
[380356461,1755701444388,-156.587,0.00021999,4]
[380356462,1755701444398,-151.0,0.00021999,4]
[380356463,1755701444409,-162.380719,0.00021999,4]
[380356464,1755701444419,-200.0,0.00021999,4]
[380356465,1755701444438,-151.0,0.00021999,4]
[380356466,1755701444458,-235.09508538,0.00021999,4]
[380356467,1755701444469,-200.0,0.00021999,4]
[380356468,1755701444479,-151.0,0.00021999,4]
[380356469,1755701444488,-151.0,0.00021999,4]
[380356470,1755701444498,-200.0,0.00021999,4]
[380356471,1755701444508,-200.0,0.00021999,4]
[380356472,1755701444519,-151.0,0.00021999,4]
[380356473,1755701444530,-200.0,0.00021999,4]
[380356474,1755701444540,-600.0,0.00021999,4]
[380356475,1755701444550,-151.0,0.00021999,4]
[380356476,1755701444564,-200.0,0.00021999,4]
[380356477,1755701444574,-600.0,0.00021999,4]
[380356478,1755701444584,-151.0,0.00021999,4]
[380356479,1755701444596,-151.0,0.00021999,4]
[380356480,1755701444606,-200.0,0.00021999,4]
[380356481,1755701444616,-600.0,0.00021999,4]
[380356482,1755701444626,-151.0,0.00021999,4]
[380356483,1755701444636,-151.0,0.00021999,4]
[380356484,1755701444647,-151.0,0.00021999,4]
[380356485,1755701444656,-200.0,0.00021999,4]
[380356486,1755701444667,-600.0,0.00021999,4]
[380356487,1755701444676,-151.0,0.00021999,4]
[380356488,1755701444687,-156.587,0.00021999,4]
[380356489,1755701444697,-248.1975563,0.00021999,4]
[380356490,1755701444706,-151.0,0.00021999,4]
[380356491,1755701444716,-151.0,0.00021999,4]
[380356492,1755701444726,-162.380719,0.00021999,4]
[380356493,1755701444737,-600.0,0.00021999,4]
[380356494,1755701444747,-600.0,0.00021999,4]
[380356495,1755701444756,-151.0,0.00021999,4]
[380356496,1755701444768,-168.3888056,0.00021999,4]
[380356497,1755701444778,-600.0,0.00021999,4]
[380356498,1755701444788,-174.61919141,0.00021999,4]
[380356499,1755701444798,-151.0,0.00021999,4]
[380356500,1755701444808,-600.0,0.00021999,4]
[380356501,1755701444818,-181.08010149,0.00021999,4]
[380356502,1755701444828,-151.0,0.00021999,4]
[380356503,1755701444838,-600.0,0.00021999,4]
[380356504,1755701444849,-187.78006525,0.00021999,4]
[380356505,1755701444858,-600.0,0.00021999,4]
[380356506,1755701444867,-194.72792766,0.00021999,4]
[380356507,1755701444877,-600.0,0.00021999,4]
[380356508,1755701444887,-201.93286099,0.00021999,4]
[380356509,1755701444897,-209.40437684,0.00021999,4]
[380356510,1755701444906,-217.15233878,0.00021999,4]
[380356511,1755701444916,-225.18697532,0.00021999,4]
[380356512,1755701444926,-233.51889341,0.00021999,4]
[380356513,1755701444936,-242.15909246,0.00021999,4]
[380356514,1755701444947,-251.11897888,0.00021999,4]
[380356515,1755701444956,-548.36854937,0.00021999,4]
[380356516,1755701444965,-260.4103811,0.00021999,4]
[380356517,1755701444975,-178.97768567,0.00021999,4]
[380356518,1755701444985,-2000.0,0.00021999,2]
[380356519,1755701444995,-2000.0,0.00021999,2]
[380356520,1755701445005,-2000.0,0.00021999,2]
[380356521,1755701445015,-2000.0,0.00021999,2]
[380356522,1755701445026,-2000.0,0.00021999,2]
[380356523,1755701445036,-2000.0,0.00021999,2]
[380356524,1755701445046,-2000.0,0.00021999,2]
[380356525,1755701445056,-2143.08448246,0.00021999,2]
[380356526,1755701445066,-3599.99999903,0.00022,23]
[380356527,1755701445076,-1100.0,0.00022,2]
[380356528,1755701445272,-2300.0,0.00022,2]
[380356529,1755701445290,-800.0,0.00022,2]
[380356530,1755701445300,-3214146.07316606,0.00022,7]
[380356531,1755701447111,-151.0,0.00014801,2]
[380356532,1755701447121,-25071.56312862,0.00022,7]
[380356533,1755701447134,-11417.43084256,0.00022,7]
[380356534,1755701447146,-7037.56510362,0.00022,7]
[380356535,1755701447266,-4196.53352002,0.00022,7]
[380356536,1755701447280,-1771.73665978,0.00022,7]
[380356537,1755701448640,-198.053,0.0001601,2]
[380356538,1755701448650,-246.64347425,0.000219,2]
[380356539,1755701448660,-252604.09782983,0.00022,7]
[380356540,1755701448758,-3821.10308113,0.00022,7]
[380356541,1755701448771,-1139.78146458,0.00022,7]
[380356542,1755701448846,-5228.01352415,0.00022,7]
[380356543,1755701448858,-12756.79999978,0.00022,7]
[380356544,1755701448871,-3827.85,0.00022,7]
[380356545,1755701448882,-323.70139781,0.00022,7]
[380356546,1755701448907,-383.06962251,0.00021,2]
[380356547,1755701448948,-841.80024,0.00021,2]
[380356548,1755701450208,-296.1,0.00021,2]
[380356549,1755701450220,-1066.129332,0.00021,2]
[380356550,1755701450237,-1630.02260384,0.00021,2]
[380356551,1755701450260,-4329.6,0.00021,2]
[380356552,1755701450273,-11214.19224342,0.00021,2]
[380356553,1755701450286,-2499.9999,0.00021,2]
[380356554,1755701450305,-4994.50326722,0.00021,2]
[380356555,1755701450321,-23130.97868091,0.00021,2]
[380356556,1755701450333,-422.3538,0.00021,2]
[380356557,1755701532480,-500.0,0.00010973,2]
[380356558,1755701532506,-300.0,0.00011049,2]
[380356559,1755701532530,-250.0,0.00011126,2]
[380356560,1755701532555,-1000.0,0.00011279,2]
[380356561,1755701532578,-2033.77272358,0.00011421,2]
[380356562,1755701532603,-438.37625615,0.00011521,2]
[380356563,1755701532626,-250.0,0.00011556,2]
[380356564,1755701532650,-250.0,0.0001207,2]
[380356565,1755701532674,-300.0,0.0001207,2]
[380356566,1755701532698,-2033.77272354,0.00012585,2]
[380356567,1755701532721,-2033.77272354,0.0001375,2]
[380356568,1755701532744,-300.0,0.00014913,2]
[380356569,1755701532768,-2033.77272354,0.00014914,2]
[380356570,1755701532791,-151.0,0.00015901,2]
[380356571,1755701594228,2000.0,0.00027037,120]
[380356572,1755701615325,-742.96,0.000111,2]
[380356573,1755701615347,-2033.77272354,0.00016078,2]
[380356574,1755701615376,-303.86,0.00016078,2]
[380356575,1755701615400,-302.18,0.00016078,2]
[380356576,1755701615425,-302.48,0.00016078,2]
[380356577,1755701615449,-200.61,0.00016078,2]
[380356578,1755701615476,-200.14,0.00016078,2]
[380356579,1755701615498,-304.87,0.00016078,2]
[380356580,1755701615523,-202.6,0.00016078,2]
[380356581,1755701615546,-203.9,0.00016078,2]
[380356582,1755701615569,-201.46,0.00016078,2]
[380356583,1755701615592,-300.25,0.00016078,2]
[380356584,1755701615617,-201.73,0.00016078,2]
[380356585,1755701615640,-2033.77272354,0.00017243,2]
[380356586,1755701615662,-1000.0,0.00017796,2]
[380356587,1755701615684,-833.64380335,0.00017918,2]
[380356588,1755701615708,-151.0,0.00017987,2]
[380356589,1755701615730,-458.46930693,0.00017998,3]
[380356590,1755701615753,-151.0,0.00018006,2]
[380356591,1755701615776,-151.0,0.00018037,2]
[380356592,1755701615799,-151.0,0.00018254,2]
[380356593,1755701615822,-2228.89,0.000183,7]
[380356594,1755701615845,-300.0,0.00018406,2]
[380356595,1755701615867,-2033.77272354,0.00018407,2]
[380356596,1755701615890,-900.0,0.000185,2]
[380356597,1755701615912,-900.0,0.000185,2]
[380356598,1755701615935,-900.0,0.000185,2]
[380356599,1755701615957,-900.0,0.000185,2]
[380356600,1755701615979,-900.0,0.000185,2]
[380356601,1755701616000,-900.0,0.000185,2]
[380356602,1755701616023,-900.0,0.000185,2]
[380356603,1755701616045,-900.0,0.000185,2]
[380356604,1755701616068,-843.97594471,0.00018654,2]
[380356605,1755701616090,-500.0,0.00018712,2]
[380356606,1755701616113,-1400.0,0.00018712,2]
[380356607,1755701616137,-62.66277439,0.00018712,2]
[380356608,1755701654549,-157.0,0.00013781,3]
[380356609,1755701654574,-2500.0,0.00015159,2]
[380356610,1755701654598,-300.0,0.00015159,2]
[380356611,1755701654623,-201.87,0.00016078,2]
[380356612,1755701654647,-305.91,0.00016078,2]
[380356613,1755701654673,-200.12,0.00016078,2]
[380356614,1755701654696,-151.0,0.00018133,2]
[380356615,1755701654720,-151.0,0.00018284,2]
[380356616,1755701654743,-1033.1,0.00018712,2]
[380356617,1755701695510,-151.0,0.0001831,2]
[380356618,1755701695533,-151.0,0.00018371,2]
[380356619,1755701695556,-304.23722561,0.00018712,2]
[380356620,1755701695579,-279.63124574,0.00018737,2]
[380356621,1755701695601,-458.46930693,0.00019166,2]
[380356622,1755701695625,-212.04014818,0.00019166,2]
[380356623,1755701695647,-2033.77272354,0.00019571,2]
[380356624,1755701695670,-1000.0,0.00019574,2]
[380356625,1755701695694,-6920.61,0.00019756,2]
[380356626,1755701695717,-2751.0,0.00019799,2]
[380356627,1755701695740,-500.0,0.00019808,2]
[380356628,1755701695764,-1400.0,0.00019808,2]
[380356629,1755701695788,-1400.0,0.00019808,2]
[380356630,1755701695813,-2644.0,0.00020111,2]
[380356631,1755701695836,-2644.0,0.00020162,2]
[380356632,1755701695861,-2550.23935,0.00020181,2]
[380356633,1755701727038,-151.0,0.00018429,2]
[380356634,1755701727063,-151.0,0.00018515,2]
[380356635,1755701727090,-843.97594471,0.00019166,2]
[380356636,1755701727114,-5000.0,0.00020067,2]
[380356637,1755701727139,-93.76065,0.00020181,2]
[380356638,1755701727164,-1200.0,0.00020184,2]
[380356639,1755701727189,-466.28355873,0.00020185,2]
[380356640,1755701727213,-309.0,0.00020185,2]
[380356641,1755701727236,-157.0,0.00020185,2]
[380356642,1755701727261,-300.0,0.00020185,2]
[380356643,1755701727288,-19205.18,0.00020186,2]
[380356644,1755701727313,-2644.0,0.00020272,2]
[380356645,1755701727788,-2644.0,0.00020466,2]
[380356646,1755701727813,-2644.0,0.00020521,2]
[380356647,1755701727836,-150.03193844,0.00020548,2]
[380356648,1755701727862,-2644.0,0.00020583,2]
[380356649,1755701727887,-2644.0,0.00020628,2]
[380356650,1755701727909,-1000.0,0.00020735,2]
[380356651,1755701727933,-2033.77272354,0.00020736,2]
[380356652,1755701727959,-2644.0,0.0002078,2]
[380356653,1755701727984,-405.0,0.00020903,2]
[380356654,1755701728007,-500.0,0.00020904,2]
[380356655,1755701728030,-1400.0,0.00020904,2]
[380356656,1755701728053,-1400.0,0.00020904,2]
[380356657,1755701728080,-2644.0,0.00020927,2]
[380356658,1755701728106,-2644.0,0.00020941,2]
[380356659,1755701728130,-2644.0,0.00020993,2]
[380356660,1755701728153,-38981.63678066,0.00021,2]
[380356661,1755701728178,-458.46930693,0.00021,7]
[380356662,1755701728202,-601.09645483,0.00021,2]
[380356663,1755701736100,151.0,0.00018586,2]
[380356664,1755701740637,-1670.79264216,0.00021332,2]
[380356666,1755701788432,-1000.0,0.00013699,2]
[380356667,1755701798142,445.78,0.000111,2]
[380356668,1755701812981,-554.22,0.000183,7]
[380356669,1755701823577,1024.05353104,0.000273,120]
[380356670,1755701843144,-203.96,0.000183,2]
[380356671,1755701843171,-200.48,0.000183,2]
[380356672,1755701843198,-203.66,0.000183,2]
[380356673,1755701843223,-202.77,0.000183,2]
[380356674,1755701843619,-783.12,0.000183,7]
[380356675,1755701843642,-1000.0,0.00018712,2]
[380356676,1755701843667,-201.75,0.00018801,2]
[380356677,1755701843689,-151.0,0.00018845,2]
[380356678,1755701843713,-151.0,0.00018866,2]
[380356679,1755701843735,-151.0,0.00018966,2]
[380356680,1755701843757,-500.0,0.00018986,2]
[380356681,1755701843779,-1100.0,0.00018986,2]
[380356682,1755701843801,-458.46930693,0.00019166,2]
[380356683,1755701843825,-212.04014818,0.00019166,2]
[380356684,1755701843847,-151.0,0.00019472,2]
[380356685,1755701843871,-1000.0,0.00019808,2]
[380356686,1755701843892,-739.08,0.00019863,2]
[380356687,1755701843914,-151.0,0.00019977,2]
[380356688,1755701843936,-250.0,0.0002,7]
[380356689,1755701843958,-300.0,0.00020081,2]
[380356690,1755701843980,-500.0,0.00020082,2]
[380356691,1755701844002,-1100.0,0.00020082,2]
[380356692,1755701844026,-9274.81107495,0.00020174,2]
[380356693,1755701844049,-1000.0,0.00020187,2]
[380356694,1755701844074,-722.85946994,0.00020229,2]
[380356696,1755701897733,-203.61,0.000183,2]
[380356697,1755701897759,-202.5,0.000183,2]
[380356698,1755701897785,-203.71,0.000183,2]
[380356699,1755701897811,-202.83,0.000183,2]
[380356700,1755701897836,-277.35679052,0.00020174,2]
[380356701,1755701897860,-8895.11961479,0.00020229,2]
[380356702,1755701897884,-9973.84431086,0.00020284,2]
[380356703,1755701897907,-10342.87655036,0.00020339,2]
[380356704,1755701897931,-1283.94039676,0.00020394,2]
[380356705,1755701897955,-188.9562543,0.0002042,2]
[380356706,1755701897977,-280.25608241,0.00020458,2]
[380356707,1755701911918,-150.0,0.0002,7]
[380356708,1755701911943,-219.74391759,0.00020458,2]
[380356709,1755701911965,-200.0,0.00020458,2]
[380356710,1755701911988,-11130.25608241,0.00020459,2]
[380356711,1755701946511,-1666.6666,0.0002,2]
[380356712,1755701946536,-300.0,0.00020458,2]
[380356713,1755701946560,-1666.6666,0.00020459,2]
[380356714,1755701946583,-1666.6666,0.00020459,2]
[380356715,1755701946607,-9547.0002,0.00020459,2]
[380356716,1755701999414,154.29,0.00025825,120]
[380356719,1755702130487,799.0,0.00027397,120]
[380356720,1755702209430,-267.46,0.000111,2]
[380356721,1755702266629,-802.4,0.000183,7]
[380356733,1755702632357,-500.0,0.00011,2]
[380356735,1755702632367,-160.48,0.000112,2]
[380356736,1755702632376,-250.0,0.00015,2]
[380356737,1755702632515,-206.17481584,0.00017,2]
[380356738,1755702632542,-93.82518416,0.00017,2]
[380356739,1755702632558,-500.0,0.00017288,2]
[380356740,1755702632568,-99.24301584,0.00018276,2]
[380356964,1755702635057,-219.1093068,0.00018276,2]
[380356966,1755702635067,-481.44,0.000183,7]
[380356968,1755702635078,-2000.0,0.000185,2]
[380356970,1755702635093,-500.0,0.00018986,2]
[380356972,1755702635102,-300.0,0.00018999,2]
[380356974,1755702635111,-1200.0,0.00018999,2]
[380356976,1755702635120,-2000.0,0.00019,2]
[380356978,1755702635129,-350.0,0.00019,2]
[380356980,1755702635138,-300.0,0.00019039,2]
[380356982,1755702635147,-900.0,0.0001904,2]
[380356984,1755702635156,-900.0,0.0001904,2]
[380356986,1755702635166,-900.0,0.0001904,2]
[380356988,1755702635175,-900.0,0.0001904,2]
[380356990,1755702635184,-900.0,0.0001904,2]
[380356992,1755702635193,-900.0,0.0001904,2]
[380356994,1755702635202,-900.0,0.0001904,2]
[380356997,1755702635211,-900.0,0.0001904,2]
[380356998,1755702635220,-364.973099,0.0001904,2]
[380357002,1755702635247,-805.146901,0.0001904,2]
[380357004,1755702635256,-150.99,0.0001904,2]
[380357006,1755702635266,-1151.75,0.0001904,2]
[380357008,1755702635275,-2000.0,0.000195,2]
[380357010,1755702635284,-206.38,0.00019659,2]
[380357012,1755702635294,-200.0,0.00019693,2]
[380357014,1755702635302,-666.0,0.00019719,3]
[380357017,1755702635315,-843.97594471,0.00019754,2]
[380357019,1755702635324,-250.0,0.00019811,2]
[380357020,1755702635333,-150.4,0.00019836,2]
[380357021,1755702635343,-458.46930693,0.00019895,2]
[380357022,1755702635352,-212.04014818,0.00019896,2]
[380357023,1755702635362,-2361.15,0.00019899,2]
[380357024,1755702635371,-600.0,0.0001997,2]
[380357025,1755702635381,-787.23761539,0.0002,2]
[380357026,1755702635392,-1221.19238461,0.0002,2]
[380357027,1755702635401,-1068.18908294,0.00020347,2]
[380357028,1755702635410,-322.6107,0.00020447,2]
[380357029,1755702635419,-721.12765535,0.00020447,2]
[380357030,1755702635428,-156.587,0.00020447,2]
[380357032,1755702635438,-151.0,0.00020447,2]
[380357034,1755702635447,-151.0,0.00020447,2]